fUSD/lending_fUSD_20260616
["ID","MTS","AMOUNT","RATE_DAILY","PERIOD"]
[425138078,1781547049000,-2448.28122791,0.0001038,2]
[425138076,1781547049000,-2124.44972721,0.0001038,2]
[425138089,1781547049000,-153.42,0.00010424,2]
[425138075,1781547049000,-427.40070169,0.0001038,2]
[425138074,1781547049000,-1992.23617502,0.0001028,2]
[425138081,1781547049000,-292.805257,0.0001038,2]
[425138073,1781547049000,-315.77258204,0.0001028,2]
[425138072,1781547049000,-1161.66341644,0.0001028,2]
[425138071,1781547049000,-481.0271002,0.0001028,2]
[425138070,1781547049000,-530.08153596,0.0001028,2]
[425138069,1781547049000,-351.736,0.0001028,2]
[425138077,1781547049000,-562.50051813,0.0001038,2]
[425138087,1781547049000,-6202.3682133,0.00010397,2]
[425138093,1781547049000,-500.0,0.00010479,2]
[425138115,1781547049000,-256.3978925,0.00010667,2]
[425138117,1781547049000,-1779.24,0.00010667,2]
[425138116,1781547049000,-5530.0,0.00010667,2]
[425138095,1781547049000,-1500000.0,0.0001048,2]
[425138112,1781547049000,-500.0,0.00010496,2]
[425138114,1781547049000,-400.00129797,0.00010667,2]
[425138113,1781547049000,-34449.83273387,0.00010667,2]
[425138108,1781547049000,-302.16835299,0.00010596,2]
[425138111,1781547049000,-227484.3059323,0.00010667,2]
[425138109,1781547049000,-179.89836188,0.00010623,2]
[425138110,1781547049000,-634.86623677,0.00010623,2]
[425138107,1781547049000,-47713.33492087,0.0001058,2]
[425138088,1781547049000,-9278.37190781,0.00010397,2]
[425138101,1781547049000,-300.0,0.00010496,2]
[425138102,1781547049000,-309.28,0.00010529,2]
[425138096,1781547049000,-102931.4,0.0001048,2]
[425138098,1781547049000,-300.0,0.00010496,2]
[425138099,1781547049000,-193.0,0.00010496,2]
[425138094,1781547049000,-511.07488474,0.00010479,2]
[425138100,1781547049000,-3134.92830145,0.00010496,2]
[425138097,1781547049000,-250.0,0.00010496,2]
[425138104,1781547049000,-2500.0,0.00010567,2]
[425138106,1781547049000,-183.568,0.00010579,2]
[425138105,1781547049000,-1542.763,0.00010579,2]
[425138103,1781547049000,-4182.1809,0.00010567,2]
[425138121,1781547101000,-6824.0566,0.0001028,2]
[425138123,1781547154000,182.52775716,0.0003011,120]
[425138122,1781547154000,-150.0,0.00010279,2]
[425138127,1781547208000,-191.28130931,0.0001018,2]
[425138128,1781547208000,225.26309332,0.0003011,120]
[425138129,1781547234000,1046.48317555,0.00010279,3]
[425138130,1781547261000,-150.0,0.00010074,2]
[425138131,1781547315000,-151.0,0.00010074,2]
[425138132,1781547316000,159.16600637,0.00013699,10]
[425138135,1781547335000,1108.95049288,0.00010279,3]
[425138134,1781547335000,1108.95049289,0.00010279,3]
[425138133,1781547335000,1108.95049288,0.00010279,3]
[425138139,1781547368000,1050.31195076,0.00010279,3]
[425138137,1781547368000,1050.31195075,0.00010279,3]
[425138138,1781547368000,1050.31195075,0.00010279,3]
[425138136,1781547368000,-153.0,0.00010073,2]
[425138141,1781547369000,1050.27541664,0.00010279,3]
[425138140,1781547369000,1050.27541664,0.00010279,3]
[425138142,1781547376000,296.46350238,0.0003011,120]
[425138143,1781547380000,1047.97376743,0.00010279,3]
[425138147,1781547392000,1114.54786203,0.00010279,3]
[425138144,1781547392000,1114.54786203,0.00010279,3]
[425138146,1781547392000,1114.54786203,0.00010279,3]
[425138145,1781547392000,1114.54786203,0.00010279,3]
[425138148,1781547421000,-500.0,0.00010072,2]
[425138151,1781547422000,1097.14971622,0.00010279,3]
[425138152,1781547422000,1097.14971623,0.00010279,3]
[425138150,1781547422000,1097.14971623,0.00010279,3]
[425138149,1781547422000,1097.14971623,0.00010279,3]
[425138153,1781547422000,1097.14971623,0.00010279,3]
[425138154,1781547429000,611.98774175,8.721e-05,2]
[425138155,1781547430000,764.54322528,8.721e-05,2]
[425138156,1781547436000,163.05492631,0.0003011,120]
[425138157,1781547475000,-172.03932721,9.473e-05,2]
[425138158,1781547476000,200.0,9.539e-05,7]
[425138159,1781547488000,192.45490913,9.52e-05,7]
[425138162,1781547501000,1143.6,9.259e-05,2]
[425138167,1781547553000,405.52,9.259e-05,2]
[425138170,1781547560000,188.57176076,8.721e-05,2]
[425138168,1781547560000,166.66,8.721e-05,2]
[425138169,1781547560000,157.47,8.721e-05,2]
[425138171,1781547561000,80.25283653,8.721e-05,2]
[425138172,1781547561000,175.87,8.721e-05,2]
[425138174,1781547561000,244.50225741,8.721e-05,2]
[425138173,1781547561000,153.0,8.721e-05,2]
[425138175,1781547571000,33.23721659,9.203e-05,2]
[425138177,1781547571000,264.61159992,9.203e-05,2]
[425138176,1781547571000,169.36118349,9.203e-05,2]
[425138178,1781547596000,150.0,0.00011233,120]
[425138179,1781547606000,16.54474436,8.721e-05,2]
[425138180,1781547606000,148.9659529,8.721e-05,2]
[425138181,1781547610000,351.0340471,9.203e-05,2]
[425138182,1781547610000,281.15634428,9.203e-05,2]
[425138183,1781547610000,200.0,9.203e-05,2]
[425138185,1781547610000,500.0,9.203e-05,2]
[425138187,1781547610000,126.63786385,9.203e-05,2]
[425138186,1781547610000,282.99003528,9.203e-05,2]
[425138184,1781547610000,258.18170949,9.203e-05,2]
[425138190,1781547614000,1034.09331631,9.2e-05,2]
[425138188,1781547614000,79.36165145,9.2e-05,2]
[425138189,1781547614000,196.49503224,9.2e-05,2]
[425138191,1781547659000,-166.66,9.477e-05,2]
[425138194,1781547666000,4559.51,9.146e-05,2]
[425138195,1781547671000,2000.0,0.00030137,120]
[425138196,1781547671000,3019.42,9.148e-05,2]
[425138197,1781547712000,-162.18335046,9.491e-05,2]
[425138198,1781547712000,3967.85,9.149e-05,2]
[425138199,1781547721000,4000.0,0.00030137,120]
[425138200,1781547767000,-162.18335046,9.491e-05,2]
[425138201,1781547771000,200.0,9.016e-05,2]
[425138202,1781547793000,1000.0,9.016e-05,2]
[425138203,1781547820000,-162.18335046,9.491e-05,2]
[425138204,1781547840000,1000.0,0.00030137,120]
[425138206,1781547873000,-250.0,9.491e-05,2]
[425138207,1781547887000,316.34,8.956e-05,2]
[425138208,1781547919000,-500.0,9.491e-05,2]
[425138209,1781547972000,-283.32108539,9.492e-05,2]
[425138211,1781547973000,397.06,8.907e-05,2]
[425138210,1781547973000,1000.0,0.00030137,120]
[425138212,1781547999000,850.01,8.962e-05,2]
[425138213,1781548025000,-397.06,9.402e-05,2]
[425138214,1781548079000,-150.0,9.447e-05,2]
[425138215,1781548090000,172.39,7.237e-05,2]
[425138216,1781548102000,1852.42,9.025e-05,2]
[425138217,1781548133000,-250.0,9.492e-05,2]
[425138226,1781548134000,-500.0,9.516e-05,2]
[425138224,1781548134000,-412.90625298,9.516e-05,2]
[425138225,1781548134000,-500.0,9.516e-05,2]
[425138221,1781548134000,-500.0,9.516e-05,2]
[425138223,1781548134000,-266.51171488,9.516e-05,2]
[425138222,1781548134000,-233.48828512,9.516e-05,2]
[425138220,1781548134000,-329.56150743,9.516e-05,2]
[425138218,1781548134000,-300.0,9.492e-05,2]
[425138219,1781548134000,-933.51169922,9.516e-05,2]
[425138227,1781548134000,-9.58605811,9.516e-05,2]
[425138228,1781548152000,1230.43,9.055e-05,2]
[425138235,1781548154000,-165.46789592,9.516e-05,2]
[425138233,1781548154000,-352.22346137,9.516e-05,2]
[425138232,1781548154000,-173.41204436,9.516e-05,2]
[425138230,1781548154000,-500.0,9.516e-05,2]
[425138231,1781548154000,-542.87337642,9.516e-05,2]
[425138229,1781548154000,-490.41394189,9.516e-05,2]
[425138234,1781548154000,-151.88208216,9.516e-05,2]
[425138237,1781548155000,-500.0,9.516e-05,2]
[425138238,1781548155000,-354.49452757,9.516e-05,2]
[425138236,1781548155000,-334.53210408,9.516e-05,2]
[425138239,1781548155000,-477.36689542,9.516e-05,2]
[425138240,1781548156000,159.14498413,0.0003011,120]
[425138241,1781548163000,239.24,9.017e-05,2]
[425138242,1781548179000,-22.63310458,9.516e-05,2]
[425138243,1781548179000,-500.0,9.516e-05,2]
[425138246,1781548179000,-500.0,9.516e-05,2]
[425138244,1781548179000,-500.0,9.516e-05,2]
[425138245,1781548179000,-500.0,9.516e-05,2]
[425138247,1781548179000,-434.49302413,9.516e-05,2]
[425138249,1781548179000,-500.0,9.516e-05,2]
[425138250,1781548179000,-500.0,9.516e-05,2]
[425138252,1781548179000,-500.0,9.516e-05,2]
[425138251,1781548179000,-500.0,9.516e-05,2]
[425138253,1781548179000,-391.61915284,9.516e-05,2]
[425138248,1781548179000,-65.50697587,9.516e-05,2]
[425138254,1781548183000,201149.91540049,9.035e-05,2]
[425138255,1781548184000,888.0,0.00030137,120]
[425138258,1781548204000,-2105.41117385,9.035e-05,2]
[425138256,1781548204000,-300.0,9.034e-05,2]
[425138259,1781548204000,-1505.65872417,9.035e-05,2]
[425138257,1781548204000,-150.0,9.034e-05,2]
[425138284,1781548232000,-500.0,9.517e-05,2]
[425138293,1781548232000,-215.0,9.872e-05,2]
[425138282,1781548232000,-193.33086742,9.517e-05,2]
[425138288,1781548232000,-386.64716266,9.539e-05,2]
[425138289,1781548232000,-215.0,9.587e-05,2]
[425138287,1781548232000,-386.64716266,9.528e-05,2]
[425138290,1781548232000,-215.0,9.682e-05,2]
[425138302,1781548232000,-163.69,0.0001,2]
[425138286,1781548232000,-1000.0,9.52e-05,2]
[425138303,1781548232000,-4000.0,0.00010027,2]
[425138294,1781548232000,-397.06,9.897e-05,2]
[425138295,1781548232000,-1458.06080832,9.937e-05,2]
[425138296,1781548232000,-420.0,9.938e-05,2]
[425138301,1781548232000,-215.0,9.967e-05,2]
[425138300,1781548232000,-300.0,9.939e-05,2]
[425138298,1781548232000,-255.0,9.938e-05,2]
[425138299,1781548232000,-193.0,9.939e-05,2]
[425138283,1781548232000,-386.64716267,9.517e-05,2]
[425138304,1781548232000,-215.0,0.00010062,2]
[425138285,1781548232000,-300.0,9.518e-05,2]
[425138273,1781548232000,-272.12352312,9.035e-05,2]
[425138280,1781548232000,-500.0,9.516e-05,2]
[425138263,1781548232000,-471.84604647,9.035e-05,2]
[425138265,1781548232000,-703.601046,9.035e-05,2]
[425138264,1781548232000,-1642.20766926,9.035e-05,2]
[425138268,1781548232000,-1698.78268852,9.035e-05,2]
[425138266,1781548232000,-1060.71257955,9.035e-05,2]
[425138267,1781548232000,-393.653476,9.035e-05,2]
[425138269,1781548232000,-3527.71759355,9.035e-05,2]
[425138270,1781548232000,-292.41951053,9.035e-05,2]
[425138291,1781548232000,-215.0,9.777e-05,2]
[425138271,1781548232000,-436.81905484,9.035e-05,2]
[425138272,1781548232000,-354.00232647,9.035e-05,2]
[425138274,1781548232000,-42141.02918718,9.035e-05,2]
[425138276,1781548232000,-229.44741116,9.516e-05,2]
[425138275,1781548232000,-27143.88,9.479e-05,2]
[425138278,1781548232000,-704.24887089,9.516e-05,2]
[425138277,1781548232000,-971.63069432,9.516e-05,2]
[425138279,1781548232000,-170.20819984,9.516e-05,2]
[425138281,1781548232000,-300.0,9.517e-05,2]
[425138305,1781548232000,-151.0,0.00010072,2]
[425138308,1781548232000,-152.0,0.00010072,2]
[425138292,1781548232000,-166.66,9.79e-05,2]
[425138314,1781548232000,-150.0,0.00010074,2]
[425138334,1781548232000,-151.0,0.00010277,2]
[425138332,1781548232000,-215.0,0.00010251,2]
[425138336,1781548232000,-4000.0,0.00010278,2]
[425138333,1781548232000,-151.0,0.00010277,2]
[425138337,1781548232000,-31987.814,0.0001028,2]
[425138335,1781548232000,-3000.0,0.00010278,2]
[425138339,1781548232000,-151.0,0.0001028,2]
[425138349,1781548232000,-1836.40762783,0.00010337,2]
[425138338,1781548232000,-2000.0,0.0001028,2]
[425138340,1781548232000,-142004.49,0.0001028,2]
[425138341,1781548232000,-151.0,0.0001028,2]
[425138343,1781548232000,-151.0,0.0001028,2]
[425138347,1781548232000,-276.34116071,0.00010301,2]
[425138346,1781548232000,-189.151626,0.0001028,2]
[425138342,1781548232000,-151.0,0.0001028,2]
[425138344,1781548232000,-500.0,0.0001028,2]
[425138345,1781548232000,-500.0,0.0001028,2]
[425138306,1781548232000,-152.0,0.00010072,2]
[425138350,1781548232000,-215.0,0.00010346,2]
[425138330,1781548232000,-14656.0,0.00010247,2]
[425138331,1781548232000,-23811.0,0.00010247,2]
[425138348,1781548232000,-150.0,0.00010301,2]
[425138329,1781548232000,-169.91674799,0.00010229,2]
[425138315,1781548232000,-152.0,0.00010074,2]
[425138313,1781548232000,-151.0,0.00010073,2]
[425138309,1781548232000,-151.0,0.00010073,2]
[425138307,1781548232000,-151.0,0.00010072,2]
[425138328,1781548232000,-1531.01711368,0.0001018,2]
[425138312,1781548232000,-150.0,0.00010073,2]
[425138325,1781548232000,-8581.9645,0.0001018,2]
[425138310,1781548232000,-151.0,0.00010073,2]
[425138316,1781548232000,-152.0,0.00010074,2]
[425138311,1781548232000,-150.0,0.00010073,2]
[425138326,1781548232000,-154.70902673,0.0001018,2]
[425138319,1781548232000,-166.66,0.00010102,2]
[425138318,1781548232000,-152.0,0.00010074,2]
[425138320,1781548232000,-5000.42920961,0.00010111,2]
[425138321,1781548232000,-500.0,0.00010129,2]
[425138323,1781548232000,-215.0,0.00010156,2]
[425138324,1781548232000,-4952.444,0.0001018,2]
[425138322,1781548232000,-172.03932721,0.00010129,2]
[425138327,1781548232000,-1722.41485212,0.0001018,2]
[425138317,1781548232000,-150.0,0.00010074,2]
[425138357,1781548233000,-169.0,0.00010385,2]
[425138359,1781548233000,-169.0,0.00010385,2]
[425138356,1781548233000,-169.0,0.00010385,2]
[425138360,1781548233000,-169.0,0.00010385,2]
[425138352,1781548233000,-169.91674799,0.00010385,2]
[425138358,1781548233000,-169.0,0.00010385,2]
[425138353,1781548233000,-169.0,0.00010385,2]
[425138354,1781548233000,-169.0,0.00010385,2]
[425138351,1781548233000,-2000.0,0.00010353,2]
[425138355,1781548233000,-169.0,0.00010385,2]
[425138362,1781548233000,-500.0,0.00010403,2]
[425138361,1781548233000,-397.06,0.00010391,2]
[425138364,1781548233000,-405.52,0.00010416,2]
[425138363,1781548233000,-166.66,0.00010415,2]
[425138374,1781548233000,-3458.02756157,0.00010435,2]
[425138373,1781548233000,-2000.0,0.00010435,2]
[425138371,1781548233000,-430.80520012,0.00010435,2]
[425138370,1781548233000,-3673.0538049,0.00010435,2]
[425138372,1781548233000,-1028.29474345,0.00010435,2]
[425138368,1781548233000,-43071.0803288,0.00010435,2]
[425138369,1781548233000,-2646.5153467,0.00010435,2]
[425138365,1781548233000,-151.0,0.00010434,2]
[425138366,1781548233000,-82623.59629825,0.00010435,2]
[425138367,1781548233000,-7310.99803431,0.00010435,2]
[425138412,1781548238000,-151.0,0.00010437,2]
[425138418,1781548238000,-250.0,0.00010441,2]
[425138410,1781548238000,-177.904356,0.00010437,2]
[425138415,1781548238000,-3134.92830145,0.00010441,2]
[425138420,1781548238000,-4000.0,0.00010468,2]
[425138414,1781548238000,-300.0,0.00010441,2]
[425138417,1781548238000,-300.0,0.00010441,2]
[425138433,1781548238000,-151.16456928,0.00010656,2]
[425138421,1781548238000,-300.0,0.00010468,2]
[425138413,1781548238000,-193.0,0.00010441,2]
[425138432,1781548238000,-119500.3161,0.00010613,2]
[425138423,1781548238000,-250.0,0.00010468,2]
[425138425,1781548238000,-4000.0,0.00010529,2]
[425138434,1781548238000,-500.0,0.00010677,2]
[425138426,1781548238000,-1722.4148521,0.0001059,2]
[425138419,1781548238000,-223.0,0.00010441,2]
[425138416,1781548238000,-300.0,0.00010441,2]
[425138427,1781548238000,-163.911377,0.00010613,2]
[425138409,1781548238000,-151.0,0.00010437,2]
[425138393,1781548238000,-339.35741143,0.00010427,2]
[425138394,1781548238000,-790.64258857,0.00010435,2]
[425138395,1781548238000,-10525.88655349,0.00010435,2]
[425138396,1781548238000,-26476.46257784,0.00010435,2]
[425138397,1781548238000,-6155.325913,0.00010435,2]
[425138407,1781548238000,-8796.224767,0.00010437,2]
[425138402,1781548238000,-448097.829443,0.00010437,2]
[425138411,1781548238000,-151.0,0.00010437,2]
[425138400,1781548238000,-151.0,0.00010435,2]
[425138408,1781548238000,-151.0,0.00010437,2]
[425138401,1781548238000,-151.0,0.00010435,2]
[425138404,1781548238000,-289680.157211,0.00010437,2]
[425138399,1781548238000,-151.0,0.00010435,2]
[425138405,1781548238000,-543461.3854421,0.00010437,2]
[425138403,1781548238000,-13832.999099,0.00010437,2]
[425138406,1781548238000,-7941.3950085,0.00010437,2]
[425138398,1781548238000,-151.0,0.00010435,2]
[425138428,1781548238000,-12681.65268206,0.00010613,2]
[425138442,1781548238000,-3436.077395,0.00010877,2]
[425138430,1781548238000,-59039.89975375,0.00010613,2]
[425138452,1781548238000,-1352.85,0.00010959,2]
[425138451,1781548238000,-500.0,0.00010951,2]
[425138448,1781548238000,-8152.88169685,0.000109,2]
[425138457,1781548238000,-151.0,0.00010959,2]
[425138456,1781548238000,-150.0,0.00010959,2]
[425138453,1781548238000,-150.0,0.00010959,2]
[425138455,1781548238000,-166.66,0.00010959,2]
[425138458,1781548238000,-151.0,0.00010959,2]
[425138462,1781548238000,-1493.1,0.00010996,2]
[425138461,1781548238000,-417.07,0.00010989,2]
[425138463,1781548238000,-1722.4148521,0.00010999,2]
[425138467,1781548238000,-150.0,0.00011,2]
[425138466,1781548238000,-634.35159966,0.00011,2]
[425138464,1781548238000,-2757.2699144,0.00010999,2]
[425138422,1781548238000,-193.0,0.00010468,2]
[425138450,1781548238000,-433.0,0.00010932,2]
[425138454,1781548238000,-186.77,0.00010959,2]
[425138465,1781548238000,-191.8668981,0.00010999,2]
[425138459,1781548238000,-151.0,0.00010959,2]
[425138460,1781548238000,-560.32,0.00010989,2]
[425138424,1781548238000,-500.0,0.00010468,2]
[425138429,1781548238000,-33467.0820713,0.00010613,2]
[425138435,1781548238000,-176.57283503,0.00010723,2]
[425138437,1781548238000,-500.0,0.00010767,2]
[425138445,1781548238000,-3941.126925,0.00010877,2]
[425138443,1781548238000,-452.912632,0.00010877,2]
[425138438,1781548238000,-4000.0,0.00010779,2]
[425138431,1781548238000,-88320.15908713,0.00010613,2]
[425138439,1781548238000,-172.39,0.00010855,2]
[425138440,1781548238000,-500.0,0.00010877,2]
[425138436,1781548238000,-166.66,0.00010728,2]
[425138444,1781548238000,-6874.055437,0.00010877,2]
[425138446,1781548238000,-397.06,0.00010886,2]
[425138447,1781548238000,-8152.88169689,0.000109,2]
[425138441,1781548238000,-776.81379,0.00010877,2]
[425138449,1781548238000,-193.0,0.00010932,2]
[425138514,1781548239000,-500.0,0.00011225,2]
[425138510,1781548239000,-171.21,0.00011102,2]
[425138508,1781548239000,-82256.14347369,0.00011099,2]
[425138507,1781548239000,-82256.14347369,0.00011099,2]
[425138506,1781548239000,-82256.14347369,0.00011099,2]
[425138502,1781548239000,-82256.14347369,0.00011099,2]
[425138505,1781548239000,-82256.14347369,0.00011099,2]
[425138500,1781548239000,-82256.14347369,0.00011099,2]
[425138503,1781548239000,-82256.14347369,0.00011099,2]
[425138512,1781548239000,-166.66,0.00011178,2]
[425138501,1781548239000,-82256.14347369,0.00011099,2]
[425138504,1781548239000,-82256.14347369,0.00011099,2]
[425138520,1781548239000,-166.66,0.00011397,2]
[425138522,1781548239000,-500.0,0.00011499,2]
[425138513,1781548239000,-292.14,0.0001122,2]
[425138511,1781548239000,-160.0,0.00011105,2]
[425138518,1781548239000,-153.42,0.00011371,2]
[425138517,1781548239000,-674.752039,0.00011342,2]
[425138515,1781548239000,-150.0,0.00011233,2]
[425138516,1781548239000,-166.66,0.00011288,2]
[425138521,1781548239000,-155.82830295,0.00011439,2]
[425138523,1781548239000,-2000.0,0.00011503,2]
[425138524,1781548239000,-8152.88169685,0.00011505,2]
[425138526,1781548239000,-405.52,0.00011574,2]
[425138525,1781548239000,-166.66,0.00011507,2]
[425138498,1781548239000,-84377.70351136,0.00011099,2]
[425138519,1781548239000,-397.06,0.00011381,2]
[425138509,1781548239000,-151.0,0.00011099,2]
[425138472,1781548239000,-1657.53,0.00011,2]
[425138497,1781548239000,-84377.70351136,0.00011099,2]
[425138470,1781548239000,-163.08,0.00011,2]
[425138468,1781548239000,-151.0,0.00011,2]
[425138469,1781548239000,-826.37,0.00011,2]
[425138483,1781548239000,-4000.0,0.0001103,2]
[425138484,1781548239000,-166.66,0.00011041,2]
[425138476,1781548239000,-677.02,0.00011,2]
[425138474,1781548239000,-290.86,0.00011,2]
[425138479,1781548239000,-195.84,0.00011,2]
[425138478,1781548239000,-1300.73,0.00011,2]
[425138477,1781548239000,-457.9,0.00011,2]
[425138532,1781548239000,-167.46531495,0.00011721,2]
[425138481,1781548239000,-669.24,0.00011,2]
[425138499,1781548239000,-82256.14347371,0.00011099,2]
[425138480,1781548239000,-1901.3,0.00011,2]
[425138485,1781548239000,-1000.0,0.00011044,2]
[425138486,1781548239000,-166.66,0.00011068,2]
[425138487,1781548239000,-151.0,0.00011096,2]
[425138489,1781548239000,-84377.70351144,0.00011099,2]
[425138496,1781548239000,-84377.70351136,0.00011099,2]
[425138490,1781548239000,-84377.70351136,0.00011099,2]
[425138495,1781548239000,-84377.70351136,0.00011099,2]
[425138493,1781548239000,-84377.70351136,0.00011099,2]
[425138491,1781548239000,-84377.70351136,0.00011099,2]
[425138492,1781548239000,-84377.70351136,0.00011099,2]
[425138488,1781548239000,-300.0,0.00011098,2]
[425138494,1781548239000,-84377.70351136,0.00011099,2]
[425138482,1781548239000,-1373.88,0.00011006,2]
[425138530,1781548239000,-200.72513036,0.0001161,2]
[425138471,1781548239000,-5885.20762104,0.00011,2]
[425138533,1781548239000,-500.0,0.00011773,2]
[425138562,1781548239000,-397.06,0.00012371,2]
[425138568,1781548239000,-330.02564624,0.0001245,2]
[425138564,1781548239000,-5586.0,0.00012389,5]
[425138563,1781548239000,-1000.0,0.00012371,2]
[425138565,1781548239000,-4846.0,0.00012389,5]
[425138567,1781548239000,-301.13612933,0.0001245,2]
[425138566,1781548239000,-259.58183,0.000124,2]
[425138570,1781548239000,-213.0,0.00012581,2]
[425138575,1781548239000,-2000.0,0.00012654,2]
[425138578,1781548239000,-609.21,0.00012757,2]
[425138573,1781548239000,-259.58184,0.000126,2]
[425138580,1781548239000,-4693.16812378,0.00012773,2]
[425138572,1781548239000,-500.0,0.00012595,2]
[425138581,1781548239000,-259.58183,0.000128,2]
[425138571,1781548239000,-395.71636866,0.00012581,2]
[425138574,1781548239000,-1836.40762781,0.00012619,2]
[425138569,1781548239000,-150.0,0.00012581,2]
[425138576,1781548239000,-250.0,0.00012688,2]
[425138579,1781548239000,-1000.67,0.00012757,2]
[425138577,1781548239000,-405.52,0.00012731,2]
[425138584,1781548239000,-8152.88169685,0.00012863,2]
[425138582,1781548239000,-3967.85,0.00012809,2]
[425138583,1781548239000,-151.0,0.00012835,2]
[425138586,1781548239000,-500.0,0.00012869,2]
[425138587,1781548239000,-22245.99,0.0001288,2]
[425138588,1781548239000,-22245.99,0.0001288,2]
[425138527,1781548239000,-1000.0,0.00011609,2]
[425138561,1781548239000,-162.76323788,0.00012367,2]
[425138560,1781548239000,-667.4378216,0.00012329,2]
[425138585,1781548239000,-397.06,0.00012866,2]
[425138559,1781548239000,-667.4378216,0.00012329,2]
[425138558,1781548239000,-667.4378216,0.00012329,2]
[425138529,1781548239000,-156.587,0.0001161,2]
[425138528,1781548239000,-151.0,0.0001161,2]
[425138531,1781548239000,-1619.60867713,0.000117,2]
[425138543,1781548239000,-500.0,0.00012055,2]
[425138540,1781548239000,-259.58183,0.00012,2]
[425138538,1781548239000,-155.46164812,0.0001184,7]
[425138536,1781548239000,-259.58183,0.000118,2]
[425138541,1781548239000,-736.0,0.00012025,2]
[425138542,1781548239000,-500.0,0.00012047,2]
[425138537,1781548239000,-220.66017969,0.0001184,7]
[425138539,1781548239000,-397.06,0.00011876,2]
[425138545,1781548239000,-8152.88169685,0.00012184,2]
[425138534,1781548239000,-1614.45041579,0.00011781,2]
[425138544,1781548239000,-2210.95,0.00012055,2]
[425138535,1781548239000,-1023.63214271,0.00011799,3]
[425138551,1781548239000,-153.42,0.00012319,2]
[425138552,1781548239000,-500.0,0.00012321,2]
[425138555,1781548239000,-198.15,0.00012329,2]
[425138556,1781548239000,-667.4378216,0.00012329,2]
[425138554,1781548239000,-179.81,0.00012329,2]
[425138548,1781548239000,-1682.0,0.00012229,5]
[425138547,1781548239000,-1493.1,0.00012218,2]
[425138550,1781548239000,-1066.9931652,0.00012266,3]
[425138549,1781548239000,-1046.48317554,0.00012266,3]
[425138546,1781548239000,-259.58183,0.000122,2]
[425138553,1781548239000,-3010.7,0.00012329,2]
[425138557,1781548239000,-667.4378216,0.00012329,2]
[425138621,1781548240000,-397.06,0.0001336,2]
[425138620,1781548240000,-250.40554899,0.0001336,2]
[425138618,1781548240000,-150.0,0.00013353,2]
[425138622,1781548240000,-150.0,0.00013361,2]
[425138616,1781548240000,-150.0,0.00013348,2]
[425138626,1781548240000,-150.0,0.00013381,2]
[425138629,1781548240000,-321.03275511,0.0001339,2]
[425138630,1781548240000,-250.40554899,0.0001339,2]
[425138628,1781548240000,-150.0,0.00013389,2]
[425138617,1781548240000,-150.0,0.00013352,2]
[425138627,1781548240000,-150.0,0.00013381,2]
[425138631,1781548240000,-150.0,0.00013391,2]
[425138625,1781548240000,-150.0,0.00013379,2]
[425138623,1781548240000,-250.40554899,0.00013375,2]
[425138624,1781548240000,-150.0,0.00013379,2]
[425138633,1781548240000,-321.03275511,0.00013405,2]
[425138643,1781548240000,-150.0,0.00013429,2]
[425138642,1781548240000,-150.0,0.00013426,2]
[425138637,1781548240000,-150.0,0.00013414,2]
[425138619,1781548240000,-150.0,0.00013355,2]
[425138635,1781548240000,-150.0,0.00013408,2]
[425138632,1781548240000,-150.0,0.00013395,2]
[425138614,1781548240000,-150.0,0.00013348,2]
[425138601,1781548240000,-150.0,0.00013315,2]
[425138611,1781548240000,-250.40554899,0.0001333,2]
[425138638,1781548240000,-150.0,0.00013414,2]
[425138591,1781548240000,-500.0,0.0001322,2]
[425138593,1781548240000,-153.42,0.00013266,2]
[425138592,1781548240000,-1252.0,0.00013226,2]